fUST/lending_fUST_20250829
["ID","MTS","AMOUNT","RATE_DAILY","PERIOD"]
[381913142,1756404640304,-480.0,0.00019452,2]
[381913143,1756404640313,-1462.61,0.00019452,2]
[381913144,1756404640324,-480.0,0.00019452,2]
[381913145,1756404640333,-480.0,0.00019452,2]
[381913146,1756404640343,-480.0,0.00019452,2]
[381913147,1756404640350,-480.0,0.00019452,2]
[381913148,1756404640361,-480.0,0.00019452,2]
[381913149,1756404640370,-1258.4,0.00019452,2]
[381913150,1756404640380,-1047.66,0.00019452,2]
[381913151,1756404640389,-1250.66,0.00019452,2]
[381913152,1756404640399,-481.85,0.00019452,2]
[381913153,1756404640408,-751.62,0.00019452,2]
[381913154,1756404640419,-726.4,0.00019452,2]
[381913155,1756404640429,-480.0,0.00019452,2]
[381913156,1756404640438,-725.49,0.00019452,2]
[381913157,1756404640448,-895.92,0.00019452,2]
[381913158,1756404640459,-480.0,0.00019452,2]
[381913159,1756404640468,-800.0,0.00019452,2]
[381913160,1756404640477,-623.18,0.00019452,2]
[381913161,1756404640487,-480.0,0.00019452,2]
[381913162,1756404640497,-480.0,0.00019452,2]
[381913163,1756404640506,-480.0,0.00019452,2]
[381913164,1756404640516,-480.0,0.00019452,2]
[381913165,1756404640525,-480.0,0.00019452,2]
[381913166,1756404640533,-718.68,0.00019452,2]
[381913167,1756404640542,-480.0,0.00019452,2]
[381913168,1756404640556,-846.83,0.00019452,2]
[381913169,1756404640565,-480.0,0.00019452,2]
[381913170,1756404640574,-754.34,0.00019452,2]
[381913171,1756404640584,-1248.38,0.00019452,2]
[381913172,1756404640593,-1384.79,0.00019452,2]
[381913173,1756404640602,-2094.15,0.00019452,2]
[381913174,1756404640611,-668.33,0.00019452,2]
[381913175,1756404640621,-480.0,0.00019452,2]
[381913176,1756404640630,-480.0,0.00019452,2]
[381913177,1756404640640,-480.0,0.00019452,2]
[381913178,1756404640649,-1009.2,0.00019452,2]
[381913179,1756404640659,-480.0,0.00019452,2]
[381913180,1756404640668,-791.97,0.00019452,2]
[381913181,1756404640677,-300.0,0.00019561,20]
[381913182,1756404640686,-300.0,0.00019561,20]
[381913183,1756404640695,-300.0,0.00019561,20]
[381913184,1756404640704,-300.0,0.00019561,20]
[381913185,1756404640713,-300.0,0.00019561,20]
[381913186,1756404640723,-300.0,0.00019561,20]
[381913187,1756404640732,-300.0,0.00019561,20]
[381913188,1756404640742,-300.0,0.00019561,20]
[381913189,1756404640752,-300.0,0.00019561,20]
[381913190,1756404640762,-300.0,0.00019561,20]
[381913191,1756404640771,-300.0,0.00019561,20]
[381913192,1756404640781,-300.0,0.00019561,20]
[381913193,1756404640791,-300.0,0.00019561,20]
[381913194,1756404640804,-300.0,0.00019561,20]
[381913195,1756404640813,-300.0,0.00019561,20]
[381913196,1756404640823,-600.0,0.00019561,20]
[381913197,1756404640832,-417.15472785,0.00019625,2]
[381913198,1756404640840,-160.0,0.00019625,2]
[381913199,1756404640848,-845.47023312,0.00019625,2]
[381913200,1756404640858,-160.0,0.00019625,2]
[381913201,1756404640867,-160.0,0.00019625,2]
[381913202,1756404640877,-216.18903889,0.00019625,2]
[381913203,1756404640886,-160.0,0.00019625,2]
[381913204,1756404640895,-425.52029335,0.00019625,2]
[381913205,1756404640905,-529.67291817,0.00019625,2]
[381913206,1756404640915,-160.0,0.00019625,2]
[381913207,1756404640926,-232.64478309,0.00019625,2]
[381913208,1756404640935,-217.27834477,0.00019625,2]
[381913209,1756404640945,-160.0,0.00019625,2]
[381913210,1756404640954,-160.0,0.00019625,2]
[381913211,1756404640964,-12710.44222334,0.00019626,2]
[381913212,1756404640974,-1000.0,0.00019721,2]
[381913213,1756404640983,-549.06719486,0.00019721,2]
[381913214,1756404640993,-995.9954359,0.00019721,2]
[381913215,1756404641002,-1000.0,0.00019721,2]
[381913216,1756404641013,-1000.0,0.00019721,2]
[381913217,1756404641023,-576.99,0.00019725,2]
[381913218,1756404641033,-1054.67,0.00019725,2]
[381913219,1756404641042,-480.0,0.00019725,2]
[381913220,1756404641056,-480.0,0.00019726,2]
[381913221,1756404641065,-480.0,0.00019726,2]
[381913222,1756404641074,-480.0,0.00019726,2]
[381913223,1756404641084,-480.0,0.00019726,2]
[381913224,1756404641093,-480.0,0.00019726,2]
[381913225,1756404641103,-480.0,0.00019726,2]
[381913226,1756404641113,-480.0,0.00019726,2]
[381913227,1756404641122,-155.21238954,0.00019726,2]
[381913228,1756404641132,-480.0,0.00019726,2]
[381913229,1756404641141,-480.0,0.00019726,2]
[381913230,1756404641151,-480.0,0.00019726,2]
[381913231,1756404641162,-480.0,0.00019726,2]
[381913232,1756404641172,-480.0,0.00019726,2]
[381913233,1756404641181,-480.0,0.00019726,2]
[381913234,1756404641191,-480.0,0.00019726,2]
[381913235,1756404641200,-610.57625338,0.00019726,2]
[381913236,1756404641210,-480.0,0.00019726,2]
[381913237,1756404641221,-480.0,0.00019726,2]
[381913238,1756404641230,-480.0,0.00019726,2]
[381913239,1756404641240,-480.0,0.00019726,2]
[381913240,1756404641252,-480.0,0.00019726,2]
[381913241,1756404641261,-480.0,0.00019726,2]
[381913242,1756404641271,-480.0,0.00019726,2]
[381913243,1756404641280,-480.0,0.00019726,2]
[381913244,1756404641289,-480.0,0.00019726,2]
[381913245,1756404641299,-1462.61,0.00019726,2]
[381913246,1756404641308,-480.0,0.00019726,2]
[381913247,1756404641318,-480.0,0.00019726,2]
[381913248,1756404641327,-480.0,0.00019726,2]
[381913249,1756404641336,-480.0,0.00019726,2]
[381913250,1756404641346,-1258.4,0.00019726,2]
[381913251,1756404641356,-1047.66,0.00019726,2]
[381913252,1756404641365,-1250.66,0.00019726,2]
[381913253,1756404641374,-481.85,0.00019726,2]
[381913254,1756404641384,-751.62,0.00019726,2]
[381913255,1756404641393,-726.4,0.00019726,2]
[381913256,1756404641402,-482.5729473,0.00019726,2]
[381913257,1756404641411,-725.49,0.00019726,2]
[381913258,1756404641420,-895.92,0.00019726,2]
[381913259,1756404641430,-480.0,0.00019726,2]
[381913260,1756404641439,-800.0,0.00019726,2]
[381913261,1756404641449,-623.18,0.00019726,2]
[381913262,1756404641458,-480.0,0.00019726,2]
[381913263,1756404641468,-480.0,0.00019726,2]
[381913264,1756404641478,-480.0,0.00019726,2]
[381913265,1756404641487,-480.0,0.00019726,2]
[381913266,1756404641497,-718.68,0.00019726,2]
[381913267,1756404641506,-480.0,0.00019726,2]
[381913268,1756404641515,-846.83,0.00019726,2]
[381913269,1756404641525,-754.34,0.00019726,2]
[381913270,1756404641534,-1248.38,0.00019726,2]
[381913271,1756404641544,-1384.79,0.00019726,2]
[381913272,1756404641555,-2094.15,0.00019726,2]
[381913273,1756404641564,-668.33,0.00019726,2]
[381913274,1756404641574,-480.0,0.00019726,2]
[381913275,1756404641584,-480.0,0.00019726,2]
[381913276,1756404641593,-1009.2,0.00019726,2]
[381913277,1756404641603,-791.97,0.00019726,2]
[381913278,1756404641612,-480.0,0.00019726,2]
[381913279,1756404641622,-487.05546,0.00019863,2]
[381913280,1756404641632,-9392.68796702,0.000199,2]
[381913281,1756404641642,-769.12206306,0.000199,2]
[381913282,1756404641651,-576.99,0.00019999,2]
[381913283,1756404641660,-1054.67,0.00019999,2]
[381913284,1756404641669,-480.0,0.00019999,2]
[381913285,1756404641678,-480.0,0.0002,2]
[381913286,1756404641687,-480.0,0.0002,2]
[381913287,1756404641697,-480.0,0.0002,2]
[381913288,1756404641706,-480.0,0.0002,2]
[381913289,1756404641716,-480.0,0.0002,2]
[381913290,1756404641725,-480.0,0.0002,2]
[381913291,1756404641735,-480.0,0.0002,2]
[381913292,1756404641744,-480.0,0.0002,2]
[381913293,1756404641754,-515.14218221,0.0002,2]
[381913294,1756404641763,-480.0,0.0002,2]
[381913295,1756404641772,-480.0,0.0002,2]
[381913296,1756404641781,-480.0,0.0002,2]
[381913297,1756404641790,-480.0,0.0002,2]
[381913298,1756404641799,-480.0,0.0002,2]
[381913299,1756404641809,-587.86361088,0.0002,2]
[381913300,1756404641818,-480.0,0.0002,2]
[381913301,1756404641827,-480.0,0.0002,2]
[381913302,1756404641837,-480.0,0.0002,2]
[381913303,1756404641846,-480.0,0.0002,2]
[381913304,1756404641856,-480.0,0.0002,2]
[381913305,1756404641865,-480.0,0.0002,2]
[381913306,1756404641875,-1462.61,0.0002,2]
[381913307,1756404641884,-480.0,0.0002,2]
[381913308,1756404641894,-480.0,0.0002,2]
[381913309,1756404641903,-480.0,0.0002,2]
[381913310,1756404641913,-480.0,0.0002,2]
[381913311,1756404641922,-1258.4,0.0002,2]
[381913312,1756404641931,-1047.66,0.0002,2]
[381913313,1756404641940,-1250.66,0.0002,2]
[381913314,1756404641950,-481.85,0.0002,2]
[381913315,1756404641959,-751.62,0.0002,2]
[381913316,1756404641970,-726.4,0.0002,2]
[381913317,1756404641980,-725.49,0.0002,2]
[381913318,1756404641990,-895.92,0.0002,2]
[381913319,1756404642000,-480.0,0.0002,2]
[381913320,1756404642010,-800.0,0.0002,2]
[381913321,1756404642021,-623.18,0.0002,2]
[381913322,1756404642031,-480.0,0.0002,2]
[381913323,1756404642042,-480.0,0.0002,2]
[381913324,1756404642051,-480.0,0.0002,2]
[381913325,1756404642061,-480.0,0.0002,2]
[381913326,1756404642070,-718.68,0.0002,2]
[381913327,1756404642081,-480.0,0.0002,2]
[381913328,1756404642091,-846.83,0.0002,2]
[381913329,1756404642101,-754.34,0.0002,2]
[381913330,1756404642110,-1248.38,0.0002,2]
[381913331,1756404642120,-1384.79,0.0002,2]
[381913332,1756404642130,-2094.15,0.0002,2]
[381913333,1756404642254,-668.33,0.0002,2]
[381913334,1756404642277,-480.0,0.0002,2]
[381913335,1756404642288,-480.0,0.0002,2]
[381913336,1756404642298,-1009.2,0.0002,2]
[381913337,1756404642308,-791.97,0.0002,2]
[381913338,1756404642317,-480.0,0.0002,2]
[381913339,1756404642327,-1500.0,0.00020268,2]
[381913340,1756404642336,-1512.06810708,0.00020268,2]
[381913341,1756404642345,-1252.96060155,0.00020268,2]
[381913342,1756404642354,-480.0,0.00020273,2]
[381913343,1756404642363,-480.0,0.00020273,2]
[381913344,1756404642372,-480.0,0.00020273,2]
[381913345,1756404642382,-480.0,0.00020273,2]
[381913346,1756404642391,-480.0,0.00020273,2]
[381913347,1756404642400,-480.0,0.00020273,2]
[381913348,1756404642409,-480.0,0.00020273,2]
[381913349,1756404642419,-480.0,0.00020273,2]
[381913350,1756404642428,-480.0,0.00020273,2]
[381913351,1756404642437,-480.0,0.00020273,2]
[381913352,1756404642446,-480.0,0.00020273,2]
[381913353,1756404642456,-480.0,0.00020273,2]
[381913354,1756404642468,-480.0,0.00020273,2]
[381913355,1756404642477,-576.99,0.00020273,2]
[381913356,1756404642487,-480.0,0.00020273,2]
[381913357,1756404642496,-480.0,0.00020273,2]
[381913358,1756404642506,-480.0,0.00020273,2]
[381913359,1756404642515,-480.0,0.00020273,2]
[381913360,1756404642524,-480.0,0.00020273,2]
[381913361,1756404642534,-1054.67,0.00020273,2]
[381913362,1756404642543,-480.0,0.00020273,2]
[381913363,1756404642554,-1462.61,0.00020273,2]
[381913364,1756404642564,-480.0,0.00020273,2]
[381913365,1756404642573,-480.0,0.00020273,2]
[381913366,1756404642583,-480.0,0.00020273,2]
[381913367,1756404642593,-480.0,0.00020273,2]
[381913368,1756404642603,-480.0,0.00020273,2]
[381913370,1756404642612,-1258.4,0.00020273,2]
[381913372,1756404642621,-1047.66,0.00020273,2]
[381913373,1756404642630,-1250.66,0.00020273,2]
[381913374,1756404642639,-481.85,0.00020273,2]
[381913375,1756404642649,-751.62,0.00020273,2]
[381913376,1756404642658,-726.4,0.00020273,2]
[381913378,1756404642668,-895.92,0.00020273,2]
[381913379,1756404642677,-725.49,0.00020273,2]
[381913380,1756404642686,-480.0,0.00020273,2]
[381913381,1756404642695,-800.0,0.00020273,2]
[381913382,1756404642704,-623.18,0.00020273,2]
[381913383,1756404642714,-480.0,0.00020273,2]
[381913384,1756404642723,-480.0,0.00020273,2]
[381913385,1756404642733,-480.0,0.00020273,2]
[381913386,1756404642743,-480.0,0.00020273,2]
[381913388,1756404642754,-718.68,0.00020273,2]
[381913389,1756404642764,-560.84214409,0.00020273,2]
[381913390,1756404642773,-846.83,0.00020273,2]
[381913393,1756404642783,-754.34,0.00020273,2]
[381913395,1756404642792,-1248.38,0.00020273,2]
[381913397,1756404642803,-1384.79,0.00020273,2]
[381913399,1756404642811,-2094.15,0.00020273,2]
[381913400,1756404642821,-668.33,0.00020273,2]
[381913402,1756404642830,-480.0,0.00020273,2]
[381913405,1756404642840,-480.0,0.00020273,2]
[381913406,1756404642849,-1009.2,0.00020273,2]
[381913409,1756404642859,-791.97,0.00020273,2]
[381913411,1756404642869,-480.0,0.00020273,2]
[381913412,1756404642879,-1988.48429456,0.00020447,2]
[381913414,1756404642888,-160.0,0.0002045,2]
[381913416,1756404642897,-313.31286398,0.00020547,2]
[381913418,1756404642906,-480.0,0.00020547,2]
[381913419,1756404642916,-480.0,0.00020547,2]
[381913421,1756404642925,-362.77962935,0.00020547,2]
[381913423,1756404642935,-480.0,0.00020547,2]
[381913424,1756404642945,-480.0,0.00020547,2]
[381913426,1756404642955,-480.0,0.00020547,2]
[381913428,1756404642965,-480.0,0.00020547,2]
[381913429,1756404642974,-480.0,0.00020547,2]
[381913431,1756404642985,-480.0,0.00020547,2]
[381913432,1756404642994,-303.80025537,0.00020547,2]
[381913433,1756404643003,-480.0,0.00020547,2]
[381913434,1756404643013,-480.0,0.00020547,2]
[381913436,1756404643022,-576.99,0.00020547,2]
[381913437,1756404643031,-480.0,0.00020547,2]
[381913440,1756404643041,-480.0,0.00020547,2]
[381913441,1756404643051,-480.0,0.00020547,2]
[381913442,1756404643060,-480.0,0.00020547,2]
[381913443,1756404643070,-480.0,0.00020547,2]
[381913444,1756404643080,-1054.67,0.00020547,2]
[381913445,1756404643089,-480.0,0.00020547,2]
[381913446,1756404643099,-1462.61,0.00020547,2]
[381913447,1756404643110,-480.0,0.00020547,2]
[381913448,1756404643119,-480.0,0.00020547,2]
[381913449,1756404643130,-480.0,0.00020547,2]
[381913450,1756404643139,-480.0,0.00020547,2]
[381913451,1756404643149,-480.0,0.00020547,2]
[381913452,1756404643159,-1258.4,0.00020547,2]
[381913453,1756404643170,-1047.66,0.00020547,2]
[381913454,1756404643179,-1250.66,0.00020547,2]
[381913455,1756404643188,-481.85,0.00020547,2]
[381913456,1756404643199,-751.62,0.00020547,2]
[381913457,1756404643209,-726.4,0.00020547,2]
[381913458,1756404643218,-725.49,0.00020547,2]
[381913459,1756404643228,-895.92,0.00020547,2]
[381913460,1756404643239,-480.0,0.00020547,2]
[381913461,1756404643248,-800.0,0.00020547,2]
[381913462,1756404643257,-623.18,0.00020547,2]
[381913463,1756404643267,-480.0,0.00020547,2]
[381913464,1756404643276,-404.54826423,0.00020547,2]
[381913465,1756404643285,-480.0,0.00020547,2]
[381913466,1756404643294,-480.0,0.00020547,2]
[381913467,1756404643305,-718.68,0.00020547,2]
[381913468,1756404643315,-846.83,0.00020547,2]
[381913469,1756404643324,-754.34,0.00020547,2]
[381913470,1756404643333,-1248.38,0.00020547,2]
[381913471,1756404643343,-1384.79,0.00020547,2]
[381913472,1756404643352,-2094.15,0.00020547,2]
[381913473,1756404643361,-668.33,0.00020547,2]
[381913474,1756404643370,-480.0,0.00020547,2]
[381913475,1756404643380,-480.0,0.00020547,2]
[381913476,1756404643390,-1009.2,0.00020547,2]
[381913477,1756404643399,-791.97,0.00020547,2]
[381913478,1756404643408,-480.0,0.00020547,2]
[381913479,1756404643417,-162.517437,0.00020548,2]
[381913480,1756404643427,-5000.0,0.00020567,2]
[381913481,1756404643437,-150.0,0.00020645,2]
[381913482,1756404643447,-769.12206302,0.00020653,2]
[381913483,1756404643457,-194.72792766,0.00020712,2]
[381913484,1756404643466,-480.0,0.00020821,2]
[381913485,1756404643476,-480.0,0.00020821,2]
[381913486,1756404643485,-480.0,0.00020821,2]
[381913487,1756404643494,-480.0,0.00020821,2]
[381913488,1756404643505,-480.0,0.00020821,2]
[381913489,1756404643514,-437.18,0.00020821,2]
[381913490,1756404643523,-448.10707013,0.00020821,2]
[381913491,1756404643533,-480.0,0.00020821,2]
[381913492,1756404643543,-480.0,0.00020821,2]
[381913493,1756404643552,-480.0,0.00020821,2]
[381913494,1756404643563,-576.99,0.00020821,2]
[381913495,1756404643572,-480.0,0.00020821,2]
[381913496,1756404643581,-480.0,0.00020821,2]
[381913497,1756404643591,-480.0,0.00020821,2]
[381913498,1756404643600,-223.43664852,0.00020821,2]
[381913499,1756404643609,-480.0,0.00020821,2]
[381913500,1756404643619,-1054.67,0.00020821,2]
[381913501,1756404643628,-477.29669355,0.00020821,2]
[381913502,1756404643638,-1462.61,0.00020821,2]
[381913503,1756404643648,-480.0,0.00020821,2]
[381913504,1756404643657,-480.0,0.00020821,2]
[381913505,1756404643667,-480.0,0.00020821,2]
[381913506,1756404643676,-480.0,0.00020821,2]
[381913507,1756404643686,-480.0,0.00020821,2]
[381913508,1756404643696,-1258.4,0.00020821,2]
[381913509,1756404643706,-1047.66,0.00020821,2]
[381913510,1756404643715,-1250.66,0.00020821,2]
[381913511,1756404643724,-481.85,0.00020821,2]
[381913512,1756404643733,-751.62,0.00020821,2]
[381913513,1756404643743,-726.4,0.00020821,2]
[381913514,1756404643753,-725.49,0.00020821,2]
[381913515,1756404643763,-895.92,0.00020821,2]
[381913516,1756404643774,-480.0,0.00020821,2]
[381913517,1756404643784,-800.0,0.00020821,2]
[381913518,1756404643793,-623.18,0.00020821,2]
[381913519,1756404643804,-480.0,0.00020821,2]
[381913520,1756404643813,-480.0,0.00020821,2]
[381913521,1756404643823,-480.0,0.00020821,2]
[381913522,1756404643832,-718.68,0.00020821,2]
[381913523,1756404643842,-846.83,0.00020821,2]
[381913524,1756404643852,-754.34,0.00020821,2]
[381913525,1756404643863,-1248.38,0.00020821,2]
[381913526,1756404643873,-1384.79,0.00020821,2]
[381913527,1756404643882,-2094.15,0.00020821,2]
[381913528,1756404643892,-668.33,0.00020821,2]
[381913529,1756404643901,-480.0,0.00020821,2]
[381913530,1756404643912,-480.0,0.00020821,2]
[381913531,1756404643923,-1009.2,0.00020821,2]
[381913532,1756404643935,-791.97,0.00020821,2]
[381913533,1756404643947,-480.0,0.00020821,2]
[381913534,1756404643959,-152.0,0.0002083,2]
[381913535,1756404643971,-201.0,0.00020834,2]
[381913536,1756404643983,-150.0,0.00020837,2]
[381913537,1756404643994,-150.0,0.00020837,2]
[381913538,1756404644006,-150.0,0.00020864,2]
[381913539,1756404644016,-150.0,0.00020864,2]
[381913540,1756404644028,-150.0,0.00020864,2]
[381913541,1756404644040,-150.0,0.00020864,2]
[381913542,1756404644052,-175.468,0.00020864,2]
[381913543,1756404644063,-990.815,0.00020864,2]
[381913544,1756404644075,-2261.869,0.00020864,2]
[381913545,1756404644087,-160.0,0.00020864,2]
[381913546,1756404644099,-640.03,0.00020864,2]
[381913547,1756404644111,-151.30332686,0.0002088,2]
[381913548,1756404644121,-420.0,0.00020893,2]
[381913549,1756404644133,-474.0,0.00020995,2]
[381913550,1756404644146,-260.0,0.00020998,2]
[381913551,1756404644159,-150.0,0.00021,2]
[381913552,1756404644175,-2000.0,0.00021,14]
[381913553,1756404644187,-2000.0,0.00021,14]
[381913554,1756404644199,-2000.0,0.00021,14]
[381913555,1756404644211,-2000.0,0.00021,14]
[381913556,1756404644223,-1468.18,0.00021,14]
[381913557,1756404644235,-714.399,0.00021059,2]
[381913558,1756404644249,-480.0,0.00021095,2]
[381913559,1756404644260,-480.0,0.00021095,2]
[381913560,1756404644272,-480.0,0.00021095,2]
[381913561,1756404644284,-480.0,0.00021095,2]
[381913562,1756404644295,-480.0,0.00021095,2]
[381913563,1756404644307,-480.0,0.00021095,2]
[381913564,1756404644317,-480.0,0.00021095,2]
[381913565,1756404644329,-480.0,0.00021095,2]
[381913566,1756404644338,-576.99,0.00021095,2]
[381913567,1756404644348,-480.0,0.00021095,2]
[381913568,1756404644358,-480.0,0.00021095,2]
[381913569,1756404644369,-480.0,0.00021095,2]
[381913570,1756404644380,-480.0,0.00021095,2]
[381913571,1756404644392,-1054.67,0.00021095,2]
[381913572,1756404644402,-1462.61,0.00021095,2]
[381913573,1756404644413,-480.0,0.00021095,2]
[381913574,1756404644424,-480.0,0.00021095,2]
[381913575,1756404644435,-480.0,0.00021095,2]
[381913576,1756404644447,-480.0,0.00021095,2]
[381913577,1756404644457,-480.0,0.00021095,2]
[381913578,1756404644468,-1258.4,0.00021095,2]
[381913579,1756404644480,-1047.66,0.00021095,2]
[381913580,1756404644491,-1250.66,0.00021095,2]
[381913581,1756404644502,-481.85,0.00021095,2]
[381913582,1756404644513,-751.62,0.00021095,2]
[381913583,1756404644526,-726.4,0.00021095,2]
[381913584,1756404644537,-725.49,0.00021095,2]
[381913585,1756404644548,-895.92,0.00021095,2]
[381913586,1756404644558,-480.0,0.00021095,2]
[381913587,1756404644568,-800.0,0.00021095,2]
[381913588,1756404644578,-623.18,0.00021095,2]
[381913589,1756404644588,-480.0,0.00021095,2]
[381913590,1756404644600,-480.0,0.00021095,2]
[381913591,1756404644612,-480.0,0.00021095,2]
[381913592,1756404644623,-718.68,0.00021095,2]
[381913593,1756404644636,-846.83,0.00021095,2]
[381913594,1756404644648,-754.34,0.00021095,2]
[381913595,1756404644660,-1248.38,0.00021095,2]
[381913596,1756404644671,-1384.79,0.00021095,2]
[381913597,1756404644681,-2094.15,0.00021095,2]
[381913598,1756404644691,-668.33,0.00021095,2]
[381913599,1756404644703,-480.0,0.00021095,2]
[381913600,1756404644714,-480.0,0.00021095,2]
[381913601,1756404644725,-1009.2,0.00021095,2]
[381913602,1756404644736,-517.89981093,0.00021095,2]
[381913603,1756404644748,-375.1059636,0.00021134,2]
[381913604,1756404644759,-10398.0582534,0.00021134,2]
[381913605,1756404644768,-31371.5727789,0.00021134,2]
[381913606,1756404644778,-19929.9567918,0.00021134,2]
[381913607,1756404644788,-168.0,0.00021197,2]
[381913608,1756404644798,-153.198706,0.00021202,10]
[381913609,1756404644809,-100000.0,0.00021263,2]
[381913610,1756404644819,-500.0,0.00021273,2]
[381913611,1756404644831,-500.0,0.00021273,2]
[381913612,1756404644841,-500.0,0.00021273,2]
[381913613,1756404644851,-500.0,0.00021273,2]
[381913614,1756404644862,-500.0,0.00021273,2]
[381913615,1756404644875,-500.0,0.00021273,2]
[381913616,1756404644886,-500.0,0.00021273,2]
[381913617,1756404644898,-500.0,0.00021273,2]
[381913618,1756404644911,-500.0,0.00021273,2]
[381913619,1756404644921,-500.0,0.00021273,2]
[381913620,1756404644931,-500.0,0.00021273,2]
[381913621,1756404644941,-500.0,0.00021273,2]
[381913622,1756404644952,-500.0,0.00021273,2]
[381913623,1756404644962,-500.0,0.00021273,2]
[381913624,1756404644973,-500.0,0.00021273,2]
[381913625,1756404644983,-500.0,0.00021273,2]
[381913626,1756404644994,-480.0,0.00021369,2]
[381913627,1756404645012,-480.0,0.00021369,2]
[381913628,1756404645022,-480.0,0.00021369,2]
[381913629,1756404645033,-480.0,0.00021369,2]
[381913630,1756404645043,-480.0,0.00021369,2]
[381913631,1756404645052,-480.0,0.00021369,2]
[381913632,1756404645063,-169.53498201,0.00021369,2]
[381913633,1756404645073,-480.0,0.00021369,2]
[381913634,1756404645086,-480.0,0.00021369,2]
[381913635,1756404645097,-576.99,0.00021369,2]
[381913636,1756404645108,-480.0,0.00021369,2]
[381913637,1756404645119,-480.0,0.00021369,2]
[381913638,1756404645130,-480.0,0.00021369,2]
[381913639,1756404645140,-480.0,0.00021369,2]
[381913640,1756404645150,-1054.67,0.00021369,2]
[381913641,1756404645161,-1462.61,0.00021369,2]
[381913642,1756404645175,-480.0,0.00021369,2]
[381913643,1756404645185,-480.0,0.00021369,2]
[381913644,1756404645196,-480.0,0.00021369,2]
[381913645,1756404645207,-480.0,0.00021369,2]
[381913646,1756404645219,-480.0,0.00021369,2]
[381913647,1756404645230,-1258.4,0.00021369,2]
[381913648,1756404645241,-1047.66,0.00021369,2]
[381913649,1756404645251,-1250.66,0.00021369,2]
[381913650,1756404645262,-481.85,0.00021369,2]
[381913651,1756404645273,-751.62,0.00021369,2]
[381913652,1756404645284,-726.4,0.00021369,2]
[381913653,1756404645294,-725.49,0.00021369,2]
[381913654,1756404645304,-895.92,0.00021369,2]
[381913655,1756404645315,-480.0,0.00021369,2]
[381913656,1756404645326,-800.0,0.00021369,2]
[381913657,1756404645337,-623.18,0.00021369,2]
[381913658,1756404645348,-480.0,0.00021369,2]
[381913659,1756404645359,-619.44577226,0.00021369,2]
[381913660,1756404645369,-452.11466155,0.00021369,2]
[381913661,1756404645379,-718.68,0.00021369,2]
[381913662,1756404645391,-846.83,0.00021369,2]
[381913663,1756404645401,-754.34,0.00021369,2]
[381913664,1756404645413,-1248.38,0.00021369,2]
[381913665,1756404645424,-1384.79,0.00021369,2]
[381913666,1756404645434,-2094.15,0.00021369,2]
[381913667,1756404645444,-668.33,0.00021369,2]